bitfinex-derivatives/quotes_BTCF0:USTF0_20220103
["timestamp","ask_amount","ask_price","bid_price","bid_amount"]
[1641228505366,0.84449038,46429.0,46422.0,0.33033567]
[1641228505568,0.20154662,46431.0,46422.0,0.33033567]
[1641228505768,0.05898,46429.0,46422.0,0.33033567]
[1641228506668,0.05898,46429.0,46422.0,0.14033567]
[1641228507269,0.05898,46429.0,46422.0,0.33233567]
[1641228508170,0.32552061,46431.0,46422.0,0.33233567]
[1641228508571,0.32552061,46431.0,46422.0,0.14033567]
[1641228509370,0.32552061,46431.0,46422.0,0.33233567]
[1641228511377,0.32552061,46431.0,46422.0,0.52433567]
[1641228512678,0.32552061,46431.0,46422.0,0.14033567]
[1641228513278,0.32552061,46431.0,46422.0,0.33333567]
[1641228513879,0.40622061,46431.0,46422.0,0.33333567]
[1641228514280,0.18771372,46427.0,46422.0,0.33333567]
[1641228514679,0.18771372,46427.0,46415.0,0.009794]
[1641228515184,0.02155319,46417.0,46411.0,0.60535654]
[1641228515380,0.18,46414.0,46411.0,0.60535654]
[1641228515780,0.0215557,46412.0,46411.0,0.60535654]
[1641228516180,0.0215557,46412.0,46406.0,0.60535654]
[1641228516580,0.14033567,46409.0,46406.0,0.60535654]
[1641228517381,0.39989497,46409.0,46406.0,0.79535654]
[1641228517782,0.39989497,46409.0,46406.0,0.19]
[1641228518782,2.77375121,46407.0,46406.0,0.19]
[1641228518980,3.04681121,46407.0,46406.0,0.19]
[1641228519180,3.04681121,46407.0,46400.0,0.009794]
[1641228519181,3.06836991,46407.0,46400.0,0.009794]
[1641228519380,0.31281862,46406.0,46399.0,0.60535654]
[1641228519782,0.021564,46400.0,46399.0,0.60535654]
[1641228520582,0.16189967,46400.0,46394.0,0.60535654]
[1641228521481,0.16189967,46400.0,46394.0,0.79835654]
[1641228522084,0.14033567,46400.0,46394.0,0.79835654]
[1641228522893,0.14033567,46400.0,46394.0,0.193]
[1641228523284,0.14033567,46400.0,46394.0,0.192]
[1641228524488,0.38150574,46400.0,46394.0,0.192]
[1641228524687,0.38150574,46400.0,46393.0,0.009794]
[1641228524891,0.14033567,46400.0,46393.0,0.009794]
[1641228525288,0.14033567,46400.0,46393.0,0.202794]
[1641228525891,0.02156124,46399.0,46393.0,0.202794]
[1641228526791,0.02156124,46399.0,46393.0,0.009794]
[1641228527292,0.02156124,46399.0,46393.0,0.202794]
[1641228528793,0.02156124,46399.0,46393.0,0.009794]
[1641228529496,0.02156124,46399.0,46393.0,0.202794]
[1641228530696,0.02156124,46399.0,46393.0,0.009794]
[1641228531295,0.02156124,46399.0,46393.0,0.202794]
[1641228531695,0.02156124,46399.0,46393.0,0.193]
[1641228531907,0.16495603,46397.0,46393.0,0.193]
[1641228532697,0.16495603,46397.0,46389.0,0.74569221]
[1641228533302,0.16495603,46397.0,46389.0,0.93969221]
[1641228533701,0.16495603,46397.0,46389.0,0.33433567]
[1641228534614,0.16495603,46397.0,46389.0,0.14033567]
[1641228535315,0.16495603,46397.0,46389.0,0.33633567]
[1641228535516,0.02156124,46399.0,46389.0,0.33633567]
[1641228536616,0.02156124,46399.0,46389.0,0.14033567]
[1641228537619,0.02156124,46399.0,46389.0,0.33633567]
[1641228538420,0.10946552,46395.0,46389.0,0.33633567]
[1641228538822,0.10946552,46395.0,46389.0,0.14033567]
[1641228539420,0.10946552,46395.0,46389.0,0.33633567]
[1641228539621,0.17279552,46395.0,46389.0,0.33633567]
[1641228540622,0.17279552,46395.0,46389.0,0.14033567]
[1641228541323,0.17279552,46395.0,46389.0,0.33633567]
[1641228542324,0.10946552,46395.0,46389.0,0.33633567]
[1641228542523,0.13102871,46395.0,46389.0,0.33633567]
[1641228542725,0.13102871,46395.0,46389.0,0.14033567]
[1641228543326,0.13102871,46395.0,46389.0,0.33633567]
[1641228544627,0.13102871,46395.0,46389.0,0.14033567]
[1641228545329,0.13102871,46395.0,46389.0,0.33633567]
[1641228545831,0.02156319,46395.0,46389.0,0.33633567]
[1641228546627,0.02156319,46395.0,46389.0,0.14033567]
[1641228547231,0.02156135,46399.0,46389.0,0.14033567]
[1641228547429,0.02156135,46399.0,46389.0,0.51633567]
[1641228548029,0.02156135,46399.0,46389.0,0.33633567]
[1641228548229,0.02156135,46399.0,46389.0,0.51633567]
[1641228548630,0.02156135,46399.0,46389.0,0.32033567]
[1641228549330,0.02156135,46399.0,46389.0,0.33533567]
[1641228550133,0.02156135,46399.0,46390.0,0.18]
[1641228550334,0.02156135,46399.0,46389.0,0.51533567]
[1641228550834,0.02156135,46399.0,46389.0,0.32033567]
[1641228551433,0.02156135,46399.0,46389.0,0.51433567]
[1641228551634,0.02156135,46399.0,46389.0,0.33433567]
[1641228551834,0.02156135,46399.0,46391.0,0.18]
[1641228552038,0.02156135,46399.0,46389.0,0.33433567]
[1641228552233,0.09546135,46399.0,46389.0,0.33433567]
[1641228552635,0.09546135,46399.0,46389.0,0.14033567]
[1641228552834,0.09546135,46399.0,46395.0,0.14033567]
[1641228553334,0.09546135,46399.0,46395.0,0.33233567]
[1641228554734,0.02156135,46399.0,46395.0,0.14033567]
[1641228555335,0.02156135,46399.0,46395.0,0.33133567]
[1641228557041,0.8380235,46404.0,46396.0,0.189794]
[1641228557237,0.8380235,46404.0,46400.0,0.18]
[1641228557638,0.8380235,46404.0,46400.0,0.189794]
[1641228557840,0.02155666,46409.0,46400.0,0.189794]
[1641228559043,0.02155666,46409.0,46405.0,0.14033567]
[1641228561445,0.02155666,46409.0,46405.0,0.33333567]
[1641228562945,0.02155666,46409.0,46405.0,0.14033567]
[1641228563449,0.02155666,46409.0,46405.0,0.33333567]
[1641228565647,0.14033567,46414.0,46405.0,0.33333567]
[1641228566848,0.14033567,46414.0,46405.0,0.14033567]
[1641228567450,0.14033567,46414.0,46405.0,0.33333567]
[1641228568851,0.14033567,46414.0,46406.0,0.009794]
[1641228569050,0.14033567,46414.0,46409.0,0.18]
[1641228569448,0.14033567,46414.0,46409.0,0.26132]
[1641228569652,0.90532387,46416.0,46409.0,0.08132]
[1641228571052,0.90532387,46416.0,46410.0,0.14033567]
[1641228572155,0.88377036,46416.0,46410.0,0.14033567]
[1641228573158,0.14033567,46420.0,46410.0,0.14033567]
[1641228573558,0.14033567,46420.0,46410.0,0.33333567]
[1641228574958,0.14033567,46420.0,46410.0,0.14033567]
[1641228575575,0.14033567,46420.0,46410.0,0.33333567]
[1641228576776,0.14033567,46420.0,46410.0,0.14033567]
[1641228577477,0.14033567,46420.0,46410.0,0.33333567]
[1641228578378,0.22508567,46420.0,46410.0,0.33333567]
[1641228578879,0.22508567,46420.0,46410.0,0.14033567]
[1641228579581,0.22508567,46420.0,46410.0,0.33333567]
[1641228580781,0.22508567,46420.0,46410.0,0.14033567]
[1641228581583,0.22508567,46420.0,46410.0,0.33333567]
[1641228582285,2.77889087,46416.0,46410.0,0.193]
[1641228582486,0.20155495,46413.0,46410.0,0.193]
[1641228582686,0.02155495,46413.0,46410.0,0.193]
[1641228582885,0.18,46412.0,46405.0,0.74569221]
[1641228583287,0.18,46412.0,46405.0,0.14033567]
[1641228583487,0.20155683,46409.0,46405.0,0.32733567]
[1641228583786,0.11701683,46409.0,46405.0,0.32733567]
[1641228583987,0.29701683,46409.0,46405.0,0.32733567]
[1641228584189,0.11701683,46409.0,46405.0,0.32733567]
[1641228584888,0.11701683,46409.0,46405.0,0.14033567]
[1641228585489,0.11701683,46409.0,46405.0,0.32933567]
[1641228586790,0.11701683,46409.0,46405.0,0.14033567]
[1641228587690,0.11701683,46409.0,46405.0,0.32933567]
[1641228588993,0.11701683,46409.0,46405.0,0.14033567]
[1641228589191,0.02155683,46409.0,46405.0,0.14033567]
[1641228589595,0.02155683,46409.0,46405.0,0.32933567]
[1641228590194,0.11510683,46409.0,46405.0,0.32933567]
[1641228590901,0.11510683,46409.0,46405.0,0.14033567]
[1641228591500,0.11510683,46409.0,46405.0,0.33033567]
[1641228592801,0.11510683,46409.0,46405.0,0.14033567]
[1641228593002,0.29510683,46409.0,46405.0,0.14033567]
[1641228593404,0.20155919,46406.0,46400.0,1.94403567]
[1641228593604,0.02155919,46406.0,46405.0,0.191]
[1641228593902,0.05698526,46404.0,46400.0,0.14033567]
[1641228594202,0.18,46403.0,46400.0,0.14033567]
[1641228595203,0.18,46403.0,46396.0,2.52965654]
[1641228595406,0.18,46403.0,46395.0,0.14033567]
[1641228595609,0.37,46403.0,46395.0,0.14033567]
[1641228596807,0.19,46403.0,46395.0,0.14033567]
[1641228597009,0.18,46401.0,46395.0,0.14033567]
[1641228597610,0.373,46401.0,46395.0,0.14033567]
[1641228598610,0.193,46401.0,46395.0,0.14033567]
[1641228598909,0.16189486,46406.0,46395.0,0.14033567]
[1641228599512,0.35689486,46406.0,46395.0,0.14033567]
[1641228600318,0.18,46402.0,46395.0,0.14033567]
[1641228601630,0.374,46402.0,46395.0,0.14033567]
[1641228602730,0.18,46402.0,46395.0,0.14033567]
[1641228603132,0.20156319,46396.0,46391.0,0.60535654]
[1641228603332,0.32033567,46392.0,46391.0,0.12946928]
[1641228603643,1.47390402,46392.0,46387.0,1.15168608]
[1641228603932,0.18,46388.0,46387.0,1.15168608]
[1641228605137,0.18,46388.0,46387.0,1.14928608]
[1641228605333,0.32033567,46388.0,46380.0,1.45988103]
[1641228605534,0.18,46385.0,46380.0,1.45988103]
[1641228605734,0.25638,46385.0,46376.0,0.09127239]
[1641228606735,0.18,46385.0,46376.0,0.09127239]
[1641228606937,0.14033567,46388.0,46376.0,0.09127239]
[1641228607334,0.18,46387.0,46376.0,0.09127239]
[1641228607935,0.25913,46387.0,46376.0,0.09127239]
[1641228608636,0.25913,46387.0,46375.0,0.09127239]
[1641228609238,0.14033567,46383.0,46375.0,0.09127239]
[1641228609438,0.14033567,46383.0,46375.0,0.25927239]
[1641228610140,0.14033567,46383.0,46376.0,0.09127239]
[1641228610740,0.14033567,46383.0,46377.0,0.18]
[1641228610943,0.14033567,46383.0,46376.0,0.27127239]
[1641228611540,0.14033567,46383.0,46376.0,0.44727239]
[1641228611541,0.178,46383.0,46376.0,0.44727239]
[1641228611944,0.02156311,46395.0,46382.0,0.18]
[1641228612241,0.02156311,46395.0,46385.0,0.18]
[1641228612641,0.02156311,46395.0,46386.0,0.003889]
[1641228613042,0.83908513,46393.0,46386.0,0.003889]
[1641228613243,0.83908513,46393.0,46392.0,0.14033567]
[1641228613443,0.83908513,46393.0,46392.0,0.20683567]
[1641228614046,0.83908513,46393.0,46392.0,0.47498274]
[1641228614243,1.19869305,46395.0,46392.0,0.47498274]
[1641228614644,0.0325,46399.0,46392.0,0.47498274]
[1641228614645,0.83975897,46397.0,46392.0,0.47498274]
[1641228614844,0.83975897,46397.0,46395.0,0.18]
[1641228615447,1.23119305,46399.0,46395.0,0.374]
[1641228615644,1.23119305,46399.0,46395.0,0.194]
[1641228616045,0.0325,46399.0,46395.0,0.194]
[1641228616845,0.0325,46399.0,46392.0,0.14033567]
[1641228617046,0.0325,46399.0,46393.0,0.18]
[1641228617446,0.0325,46399.0,46392.0,0.33333567]
[1641228618746,0.0325,46399.0,46392.0,0.14033567]
[1641228619550,0.0325,46399.0,46392.0,0.33633567]
[1641228620955,0.0325,46399.0,46392.0,0.14033567]
[1641228621157,0.02156264,46396.0,46392.0,0.14033567]
[1641228621357,0.0215642,46393.0,46392.0,0.14033567]
[1641228621556,0.0215642,46393.0,46392.0,0.32633567]
[1641228622356,0.02156264,46396.0,46392.0,0.32633567]
[1641228622756,0.02156264,46396.0,46392.0,0.14033567]
[1641228622957,1.19869305,46393.0,46392.0,0.14033567]
[1641228623464,1.19869305,46393.0,46392.0,0.32433567]
[1641228624463,1.19869305,46394.0,46392.0,0.32433567]
[1641228624663,1.19869305,46394.0,46392.0,0.184]
[1641228625360,1.19869305,46394.0,46389.0,0.14033567]
[1641228625562,1.19869305,46394.0,46392.0,0.185]
[1641228626163,1.22025665,46394.0,46392.0,0.185]
[1641228626361,1.22025665,46394.0,46379.0,0.14033567]
[1641228626562,0.18,46392.0,46379.0,0.14033567]
[1641228626861,1.35874721,46393.0,46379.0,0.14033567]
[1641228627562,0.14033567,46386.0,46379.0,0.32033567]
[1641228628563,0.14033567,46386.0,46384.0,0.18]
[1641228628767,0.83986784,46387.0,46384.0,0.20156019]
[1641228628965,0.55646784,46387.0,46384.0,0.18]
[1641228629167,1.19869305,46389.0,46384.0,0.27233]
[1641228629366,1.19869305,46389.0,46388.0,0.18]
[1641228629765,1.19869305,46393.0,46388.0,0.18]
[1641228630565,1.19869305,46393.0,46392.0,0.001]
[1641228630767,0.17283567,46399.0,46391.0,0.06]
[1641228630968,0.17283567,46399.0,46388.0,0.009794]
[1641228631171,0.22898567,46395.0,46385.0,0.14033567]
[1641228631567,0.26765,46395.0,46388.0,0.148]
[1641228632966,0.08865,46395.0,46385.0,0.28067134]
[1641228633574,0.27165,46395.0,46385.0,0.44767134]
[1641228634871,0.08865,46395.0,46385.0,0.28067134]
[1641228635472,0.27065,46395.0,46385.0,0.44767134]
[1641228636774,0.08865,46395.0,46385.0,0.28067134]
[1641228636975,0.02156162,46398.0,46385.0,0.28067134]
[1641228637576,0.20456162,46398.0,46385.0,0.44867134]
[1641228638977,0.02156162,46398.0,46385.0,0.28067134]
[1641228639578,0.20456162,46398.0,46385.0,0.44867134]
[1641228640180,0.30477278,46398.0,46385.0,0.44867134]
[1641228640879,0.12177278,46398.0,46385.0,0.28067134]
[1641228641480,0.30477278,46398.0,46385.0,0.44767134]
[1641228642788,0.30477278,46398.0,46385.0,0.28067134]
[1641228642988,0.12177278,46398.0,46385.0,0.28067134]
[1641228643389,0.12167349,46397.0,46385.0,0.28067134]
[1641228643593,0.12167349,46397.0,46385.0,0.44867134]
[1641228643990,0.30477278,46398.0,46385.0,0.44867134]
[1641228644590,0.12167242,46397.0,46385.0,0.44867134]
[1641228644791,0.30477278,46398.0,46385.0,0.44867134]
[1641228645391,0.02156162,46398.0,46385.0,0.28067134]
[1641228645591,0.02156162,46398.0,46385.0,0.45946534]
[1641228645592,0.20556162,46398.0,46385.0,0.45946534]
[1641228646997,0.02156162,46398.0,46385.0,0.29046534]
[1641228647194,1.21534966,46387.0,46385.0,0.29046534]
[1641228647394,1.30586966,46387.0,46385.0,0.29046534]
[1641228647595,1.30586966,46387.0,46385.0,0.46546534]
[1641228648195,1.21534966,46386.0,46385.0,0.46546534]
[1641228648901,1.21534966,46386.0,46385.0,0.29046534]
[1641228649600,1.40034966,46386.0,46385.0,0.46546534]
[1641228649798,1.46981966,46386.0,46385.0,0.46546534]
[1641228650605,0.25447,46386.0,46385.0,0.46546534]
[1641228650803,0.06947,46386.0,46385.0,0.29046534]
[1641228651604,0.25447,46386.0,46385.0,0.46546534]
[1641228653105,0.06947,46386.0,46385.0,0.29046534]
[1641228653504,0.25347,46386.0,46385.0,0.46546534]
[1641228654209,1.46550513,46386.0,46385.0,0.46546534]
[1641228654508,1.48707268,46386.0,46377.0,0.60670856]
[1641228654706,0.18,46383.0,46377.0,0.60670856]
[1641228655606,0.367,46383.0,46377.0,0.60670856]
[1641228655807,0.18,46382.0,46377.0,0.60670856]
[1641228656106,0.42100701,46378.0,46377.0,0.60670856]
[1641228656506,0.42100701,46378.0,46371.0,2.57320856]
[1641228656507,1.26999396,46378.0,46371.0,2.57320856]
[1641228656708,1.26999396,46378.0,46371.0,0.60670856]
[1641228657107,1.26999396,46378.0,46372.0,0.0121689]
[1641228657508,0.61100701,46378.0,46372.0,0.14706604]
[1641228657709,0.61100701,46378.0,46377.0,0.60670856]
[1641228658811,0.42100701,46378.0,46377.0,0.60670856]
[1641228659613,0.61000701,46378.0,46377.0,0.60670856]
[1641228659812,0.61000701,46378.0,46371.0,0.60670856]
[1641228660013,0.14033567,46372.0,46371.0,0.60670856]
[1641228660313,0.14033567,46372.0,46371.0,0.61887735]
[1641228661514,0.33033567,46372.0,46371.0,0.76387735]
[1641228661713,0.33033567,46372.0,46371.0,0.89877449]
[1641228663614,0.33033567,46372.0,46371.0,0.90577449]
[1641228664619,0.33033567,46372.0,46371.0,0.8936057]
[1641228665015,0.14033567,46372.0,46371.0,0.7416057]
[1641228665216,0.14033567,46372.0,46371.0,0.60670856]
[1641228665617,0.32133567,46372.0,46369.0,0.60670856]
[1641228667122,0.32133567,46372.0,46364.0,0.62670856]
[1641228667520,0.32633567,46372.0,46364.0,0.62670856]
[1641228667920,0.32633567,46372.0,46367.0,0.85079801]
[1641228668120,0.32633567,46372.0,46368.0,0.60670856]
[1641228668521,0.18,46370.0,46368.0,0.60670856]
[1641228668721,0.02157516,46369.0,46367.0,0.29052494]
[1641228669322,0.02157516,46369.0,46365.0,1.21351987]
[1641228669522,0.18,46366.0,46365.0,1.21351987]
[1641228669725,1.132,46365.0,46364.0,0.02]
[1641228670021,1.41267134,46365.0,46363.0,0.92941987]
[1641228670223,0.27525742,46361.0,46356.0,1.45988103]
[1641228670621,0.18,46360.0,46356.0,1.45988103]
[1641228670821,0.06,46360.0,46356.0,1.45988103]
[1641228671023,0.27525742,46361.0,46349.0,1.5816057]
[1641228671423,0.27525742,46361.0,46355.0,1.21740055]
[1641228671622,0.46325742,46361.0,46355.0,1.21740055]
[1641228671822,0.188,46361.0,46355.0,1.21740055]
[1641228672022,0.14033567,46356.0,46348.0,1.45988103]
[1641228672224,0.14033567,46356.0,46351.0,0.09131265]
[1641228672824,0.14033567,46356.0,46351.0,0.10348753]
[1641228673027,0.14033567,46356.0,46353.0,0.18]
[1641228673424,0.0329,46372.0,46353.0,0.20157457]
[1641228673425,0.02157457,46371.0,46353.0,0.20157457]
[1641228673624,0.02157457,46371.0,46362.0,0.18]
[1641228673826,0.0329,46372.0,46367.0,0.18]
[1641228674026,0.17323567,46372.0,46367.0,0.18]
[1641228674627,0.17323567,46372.0,46361.0,0.14033567]
[1641228674829,0.24872567,46372.0,46361.0,0.14033567]
[1641228675728,0.29839,46372.0,46371.0,0.18]
[1641228675929,0.89888382,46374.0,46371.0,0.27553569]
[1641228676130,0.89888382,46380.0,46371.0,0.42566536]
[1641228676940,0.89888382,46380.0,46374.0,0.18]
[1641228677543,0.89888382,46380.0,46371.0,0.24566536]
[1641228677742,1.08288382,46380.0,46374.0,0.167]
[1641228677944,0.184,46380.0,46374.0,0.167]
[1641228678542,1.316,46380.0,46374.0,0.167]
[1641228678842,0.02157309,46375.0,46374.0,0.167]
[1641228679042,0.10965309,46375.0,46374.0,0.167]
[1641228679643,1.43065309,46375.0,46371.0,0.14033567]
[1641228679945,0.24545294,46371.0,46365.0,0.85198092]
[1641228680944,0.24545294,46371.0,46364.0,0.94327588]
[1641228681642,0.43045294,46371.0,46364.0,1.12027588]
[1641228682043,0.43045294,46371.0,46364.0,0.26829496]
[1641228682644,0.185,46371.0,46364.0,0.26829496]
[1641228683045,0.10965309,46375.0,46363.0,0.14033567]
[1641228683645,0.29065309,46375.0,46363.0,0.32233567]
[1641228683844,0.20842935,46374.0,46363.0,0.32233567]
[1641228684851,0.20842935,46374.0,46363.0,0.14033567]
[1641228685054,0.38842935,46374.0,46363.0,0.14033567]
[1641228685353,0.02157497,46370.0,46363.0,0.14033567]
[1641228685552,0.02157497,46370.0,46363.0,0.74899266]
[1641228685752,0.02157497,46370.0,46363.0,0.93199266]
[1641228686954,0.02157651,46366.0,46363.0,0.183]
[1641228687153,0.18,46367.0,46362.0,0.60865699]
[1641228687154,0.14548262,46363.0,46362.0,0.60865699]
[1641228687453,0.41054262,46363.0,46359.0,1.21731196]
[1641228687655,0.41754262,46363.0,46359.0,1.21731196]
[1641228688257,0.14033567,46360.0,46359.0,0.60872845]
[1641228688953,0.14033567,46360.0,46358.0,0.85221983]
[1641228689154,0.14033567,46360.0,46356.0,1.21731196]
[1641228689454,0.14033567,46360.0,46352.0,1.22710596]
[1641228689653,0.32833567,46360.0,46352.0,1.22710596]
[1641228690456,0.32833567,46360.0,46353.0,0.09131988]
[1641228691055,0.14033567,46360.0,46353.0,0.09131988]
[1641228691656,0.31233567,46360.0,46353.0,0.27031988]
[1641228693155,0.14033567,46360.0,46354.0,0.09131988]
[1641228693656,0.31933567,46360.0,46354.0,0.24731988]
[1641228694057,0.31933567,46360.0,46354.0,0.156]
[1641228694258,0.14033567,46355.0,46354.0,0.156]
[1641228695059,0.14033567,46355.0,46349.0,1.21731196]
[1641228695463,0.18,46354.0,46349.0,1.21731196]
[1641228695662,0.02158335,46352.0,46349.0,1.37131196]
[1641228695861,0.26733335,46352.0,46349.0,0.154]
[1641228696362,0.14033567,46350.0,46349.0,0.154]
[1641228696560,0.29330768,46350.0,46349.0,0.154]
[1641228696961,0.29330768,46350.0,46348.0,1.21731196]
[1641228697770,0.47930768,46350.0,46345.0,0.60892807]
[1641228698169,0.02158819,46346.0,46345.0,0.60892807]
[1641228699371,0.20158819,46346.0,46345.0,0.60892807]
[1641228699569,0.43419653,46346.0,46342.0,0.60892807]
[1641228699770,0.02158818,46343.0,46342.0,0.60892807]
[1641228700069,0.40982698,46343.0,46342.0,0.60892807]
[1641228700269,0.55016265,46343.0,46342.0,0.60892807]
[1641228700672,1.68216265,46343.0,46340.0,0.60892807]
[1641228701476,2.82552028,46342.0,46340.0,0.60892807]
[1641228701670,0.02159179,46341.0,46340.0,0.60892807]
[1641228701871,0.02159179,46341.0,46316.0,0.22727973]
[1641228702071,0.02159179,46341.0,46320.0,0.32033567]
[1641228702273,0.14033567,46331.0,46320.0,0.32033567]
[1641228702472,0.14033567,46331.0,46323.0,0.18]
[1641228703472,0.14033567,46331.0,46321.0,0.18]
[1641228703873,0.14033567,46331.0,46330.0,0.18]
[1641228704074,0.14033567,46340.0,46330.0,0.26123]
[1641228704273,0.14033567,46340.0,46339.0,0.18]
[1641228704477,1.07287969,46343.0,46339.0,0.18]
[1641228704675,0.99205688,46341.0,46339.0,0.18]
[1641228705074,0.99205688,46341.0,46337.0,0.009794]
[1641228705675,0.182,46341.0,46337.0,0.79392807]
[1641228707075,0.25266677,46347.0,46337.0,0.60892807]
[1641228707679,0.43166677,46347.0,46337.0,0.79392807]
[1641228707882,0.179,46347.0,46337.0,0.79392807]
[1641228708378,0.31895018,46347.0,46337.0,0.79392807]
[1641228709178,0.13995018,46347.0,46336.0,0.60892807]
[1641228709678,0.13995018,46347.0,46336.0,0.79692807]
[1641228710377,0.13995018,46347.0,46338.0,0.18]
[1641228710579,0.13995018,46347.0,46338.0,0.78892807]
[1641228710780,0.02158506,46348.0,46338.0,0.78892807]
[1641228711579,0.02158506,46348.0,46339.0,0.60892807]
[1641228711778,0.32551972,46348.0,46339.0,0.60892807]
[1641228712379,0.19558506,46348.0,46339.0,0.81014899]
[1641228712580,0.19558506,46348.0,46341.0,0.18]
[1641228712980,0.19558506,46348.0,46340.0,0.60892807]
[1641228713181,0.02158506,46348.0,46340.0,0.60892807]
[1641228713385,0.16003249,46348.0,46340.0,0.60892807]
[1641228713683,0.34903249,46348.0,46340.0,0.60892807]
[1641228713884,0.1399502,46347.0,46340.0,1.46142737]
[1641228714084,0.1399502,46347.0,46341.0,0.60892807]
[1641228715886,0.3279502,46347.0,46341.0,0.60892807]
[1641228716086,0.3279502,46347.0,46340.0,0.60892807]
[1641228716285,0.14033567,46341.0,46340.0,0.60892807]
[1641228717686,0.14033567,46341.0,46340.0,0.78892807]
[1641228717900,0.33133567,46341.0,46338.0,0.60892807]
[1641228718700,0.39021567,46341.0,46338.0,0.60892807]
[1641228718899,0.39021567,46341.0,46337.0,0.8524993]
[1641228719299,0.39021567,46341.0,46340.0,0.8524993]
[1641228719700,0.36521567,46341.0,46340.0,0.8524993]
[1641228719899,0.30633567,46341.0,46340.0,0.8524993]
[1641228721402,0.14033567,46341.0,46340.0,0.8524993]
[1641228721799,0.32333567,46341.0,46340.0,1.0124993]
[1641228722100,0.32333567,46341.0,46340.0,1.32419502]
[1641228722401,0.32333567,46341.0,46340.0,1.08070574]
[1641228722899,0.32333567,46341.0,46340.0,0.47169572]
[1641228723099,0.32333567,46341.0,46340.0,1.32419502]
[1641228723699,0.14033567,46341.0,46340.0,1.34419502]
[1641228723903,0.14033567,46341.0,46340.0,0.46369572]
[1641228723904,0.32433567,46341.0,46340.0,0.46369572]
[1641228724803,0.32433567,46341.0,46340.0,1.31619502]
[1641228725002,0.41458567,46341.0,46340.0,1.31619502]
[1641228725302,0.23058567,46341.0,46340.0,1.16419502]
[1641228725904,0.32633567,46341.0,46340.0,1.28319502]
[1641228726304,0.32633567,46341.0,46340.0,0.9714993]
[1641228726506,0.32633567,46341.0,46340.0,0.119]
[1641228727404,0.32633567,46341.0,46340.0,0.4293239]
[1641228727606,0.32633567,46341.0,46340.0,1.03834276]
[1641228727805,0.32733567,46341.0,46340.0,1.06834276]
[1641228729207,0.14033567,46341.0,46340.0,0.91934276]
[1641228729810,0.32433567,46341.0,46340.0,1.07134276]
[1641228730011,0.32433567,46341.0,46340.0,0.152]
[1641228730811,0.32433567,46341.0,46340.0,0.4623239]
[1641228731214,0.14033567,46341.0,46340.0,0.3103239]
[1641228731813,0.32333567,46341.0,46340.0,1.07232515]
[1641228733112,0.14033567,46341.0,46340.0,0.91932515]
[1641228733913,0.32833567,46341.0,46340.0,0.91932515]
[1641228734314,0.32833567,46341.0,46340.0,0.60900125]
[1641228734514,0.32833567,46341.0,46337.0,0.60900125]
[1641228735215,0.32833567,46341.0,46337.0,0.95268822]
[1641228735813,0.32233567,46341.0,46337.0,1.10868822]
[1641228736214,0.32233567,46341.0,46337.0,0.76500125]
[1641228737313,0.14033567,46341.0,46337.0,0.60900125]
[1641228737814,0.32433567,46341.0,46337.0,0.76800125]
[1641228739315,0.14033567,46341.0,46337.0,0.60900125]
[1641228739916,0.33133567,46341.0,46337.0,0.60900125]
[1641228740118,0.33133567,46341.0,46336.0,0.60900125]
[1641228740822,0.33133567,46341.0,46335.0,0.60900125]
[1641228741325,0.14033567,46341.0,46335.0,0.60900125]
[1641228741725,1.2005336,46336.0,46335.0,0.95227558]
[1641228741927,1.2005336,46336.0,46335.0,1.05527558]
[1641228742524,0.32933567,46341.0,46335.0,1.05527558]
[1641228743125,0.14033567,46341.0,46335.0,0.95227558]
[1641228743726,0.14033567,46341.0,46335.0,0.60900125]
[1641228743925,0.32933567,46341.0,46335.0,0.71200125]
[1641228745027,0.32933567,46341.0,46335.0,1.05527327]
[1641228745329,0.14033567,46341.0,46335.0,1.13227327]
[1641228745526,0.14033567,46341.0,46335.0,0.95227327]
[1641228745726,0.14033567,46341.0,46335.0,1.13227327]
[1641228745927,0.32933567,46341.0,46336.0,0.34327202]
[1641228746128,0.32933567,46341.0,46336.0,0.95227327]
[1641228747130,0.32933567,46341.0,46338.0,0.60900125]
[1641228747329,0.14033567,46341.0,46338.0,0.60900125]
[1641228747930,0.33133567,46341.0,46338.0,0.60900125]
[1641228749034,0.33133567,46341.0,46339.0,0.60900125]
[1641228749234,0.14033567,46341.0,46339.0,0.60900125]
[1641228749832,0.32633567,46341.0,46339.0,0.60900125]
[1641228750033,0.32633567,46341.0,46338.0,0.60900125]
[1641228750735,0.32633567,46341.0,46339.0,0.60900125]
[1641228751335,0.14033567,46341.0,46339.0,0.60900125]
[1641228751534,1.48773475,46349.0,46339.0,0.78900125]
[1641228751734,1.13239255,46349.0,46342.0,0.18]
[1641228751933,1.13239255,46349.0,46340.0,0.009794]
[1641228752137,0.99205688,46349.0,46340.0,0.189794]
[1641228752337,0.99205688,46349.0,46347.0,0.18]
[1641228752534,1.07287969,46354.0,46347.0,0.24513]
[1641228752734,1.07287969,46354.0,46349.0,0.14033567]
[1641228752934,1.07287969,46354.0,46349.0,0.32033567]
[1641228753136,0.02158009,46359.0,46349.0,0.32033567]
[1641228753137,1.07287969,46358.0,46349.0,0.14033567]
[1641228753742,0.0001,46350.0,46349.0,0.14033567]
[1641228755940,0.0001,46350.0,46349.0,0.33933567]
[1641228756140,0.0001,46350.0,46349.0,0.69752696]
[1641228757140,0.0001,46350.0,46349.0,1.55002626]
[1641228757342,0.0001,46350.0,46349.0,1.35102626]
[1641228757742,0.0001,46350.0,46349.0,1.53102626]
[1641228757941,0.0001,46350.0,46349.0,1.72702626]
[1641228758741,0.0001,46350.0,46349.0,0.87452696]
[1641228758941,0.0001,46350.0,46349.0,0.89610326]
[1641228759341,0.0001,46350.0,46349.0,0.52010326]
[1641228759944,0.0001,46350.0,46349.0,0.71610326]
[1641228760143,0.0001,46350.0,46349.0,0.89610326]
[1641228760543,0.0001,46350.0,46349.0,1.56860256]
[1641228761143,0.0001,46350.0,46349.0,1.37260256]
[1641228761342,0.14043567,46360.0,46349.0,1.37260092]
[1641228761542,0.14043567,46360.0,46349.0,1.45660092]
[1641228761943,0.14043567,46360.0,46349.0,1.64660092]
[1641228762646,0.14043567,46360.0,46351.0,0.8524993]
[1641228762845,0.14043567,46360.0,46352.0,0.788786]
[1641228763045,0.14043567,46360.0,46352.0,0.608786]
[1641228763846,0.14043567,46360.0,46352.0,0.187]
[1641228765249,0.14043567,46360.0,46351.0,0.608786]
[1641228765447,0.14043567,46360.0,46351.0,0.692336]
[1641228765849,0.14043567,46360.0,46354.0,0.18]
[1641228766050,0.14043567,46360.0,46351.0,1.7338353]
[1641228766252,0.14043567,46360.0,46354.0,0.18]
[1641228766449,0.14043567,46360.0,46352.0,0.608786]